fUST/lending_fUST_20260226
["ID","MTS","AMOUNT","RATE_DAILY","PERIOD"]
[406689515,1772081451273,-4278.86260805,0.0002,2]
[406689516,1772081451325,-867.90231562,0.0002,2]
[406689517,1772081451415,-8269.58465173,0.0002,2]
[406689518,1772081451446,-794.41443861,0.0002,2]
[406689519,1772081572229,592.0,0.00012001,2]
[406689520,1772081633805,5337.0,0.00012001,2]
[406689521,1772082122905,426.72111705,0.00010618,2]
[406689525,1772082272863,1248.397806,0.000136,30]
[406689526,1772082272892,1957.602194,0.000136,30]
[406689527,1772082300591,3206.69,0.00012,10]
[406689528,1772082429091,-2339.61472786,0.00012582,2]
[406689529,1772082429111,-1854.26996241,0.00012709,2]
[406689530,1772082429133,-231.26368105,0.00012773,2]
[406689531,1772082429152,-5000.0,0.00012837,2]
[406689532,1772082429172,-1000.0,0.00013,7]
[406689533,1772082429193,-1191.0,0.00013072,2]
[406689534,1772082429214,-200.0,0.00013073,2]
[406689535,1772082429234,-608.0,0.0001323,2]
[406689536,1772082429253,-1280.50553428,0.00013395,2]
[406689537,1772082429272,-500.0,0.00013494,2]
[406689538,1772082429292,-500.0,0.00013494,2]
[406689539,1772082429313,-500.0,0.00013494,2]
[406689540,1772082429335,-500.0,0.00013494,2]
[406689541,1772082429355,-500.0,0.00013494,2]
[406689542,1772082429376,-500.0,0.00013494,2]
[406689543,1772082429396,-500.0,0.00013494,2]
[406689544,1772082429414,-500.0,0.00013494,2]
[406689545,1772082429435,-500.0,0.00013494,2]
[406689546,1772082429458,-210.41206185,0.00013494,2]
[406689547,1772082429478,-500.0,0.00013494,2]
[406689548,1772082429500,-500.0,0.00013494,2]
[406689549,1772082429523,-500.0,0.00013494,2]
[406689550,1772082429542,-500.0,0.00013494,2]
[406689551,1772082429561,-500.0,0.00013494,2]
[406689552,1772082429774,-500.0,0.00013494,2]
[406689553,1772082429793,-500.0,0.00013494,2]
[406689554,1772082429814,-500.0,0.00013494,2]
[406689555,1772082429835,-500.0,0.00013494,2]
[406689556,1772082429856,-500.0,0.00013494,2]
[406689557,1772082429879,-500.0,0.00013494,2]
[406689558,1772082429901,-500.0,0.00013494,2]
[406689559,1772082429919,-579.00395857,0.00013494,2]
[406689560,1772082429940,-500.0,0.00013494,2]
[406689561,1772082429960,-500.0,0.00013494,2]
[406689562,1772082429980,-569.99606543,0.00013494,2]
[406689563,1772082430001,-500.0,0.00013494,2]
[406689564,1772082430022,-500.0,0.00013494,2]
[406689565,1772082430042,-500.0,0.00013494,2]
[406689566,1772082430062,-500.0,0.00013494,2]
[406689567,1772082430082,-500.0,0.00013494,2]
[406689568,1772082430101,-500.0,0.00013494,2]
[406689569,1772082430121,-500.0,0.00013494,2]
[406689570,1772082430140,-500.0,0.00013494,2]
[406689571,1772082430161,-500.0,0.00013494,2]
[406689572,1772082430180,-500.0,0.00013494,2]
[406689573,1772082430201,-500.0,0.00013494,2]
[406689574,1772082430220,-500.0,0.00013494,2]
[406689575,1772082430241,-500.0,0.00013494,2]
[406689576,1772082430261,-500.0,0.00013494,2]
[406689577,1772082430281,-375.27680117,0.00013494,2]
[406689578,1772082430301,-500.0,0.00013494,2]
[406689579,1772082430320,-500.0,0.00013494,2]
[406689580,1772082430341,-500.0,0.00013494,2]
[406689581,1772082430362,-500.0,0.00013494,2]
[406689582,1772082430381,-500.0,0.00013494,2]
[406689583,1772082430402,-500.0,0.00013494,2]
[406689584,1772082430421,-288.31632283,0.00013494,2]
[406689585,1772082430441,-500.0,0.00013494,2]
[406689586,1772082430464,-500.0,0.00013494,2]
[406689587,1772082430484,-500.0,0.00013494,2]
[406689588,1772082430504,-500.0,0.00013494,2]
[406689589,1772082430525,-227.9347622,0.00013494,2]
[406689590,1772082430544,-500.0,0.00013494,2]
[406689591,1772082430564,-500.0,0.00013494,2]
[406689592,1772082430585,-500.0,0.00013494,2]
[406689593,1772082430606,-500.0,0.00013494,2]
[406689594,1772082430627,-500.0,0.00013494,2]
[406689595,1772082430646,-500.0,0.00013494,2]
[406689596,1772082430667,-500.0,0.00013494,2]
[406689597,1772082430687,-500.0,0.00013494,2]
[406689598,1772082430706,-500.0,0.00013494,2]
[406689599,1772082430726,-500.0,0.00013494,2]
[406689600,1772082430746,-500.0,0.00013494,2]
[406689601,1772082430766,-500.0,0.00013494,2]
[406689602,1772082430787,-500.0,0.00013494,2]
[406689603,1772082430806,-500.0,0.00013494,2]
[406689604,1772082430826,-500.0,0.00013494,2]
[406689605,1772082430847,-500.0,0.00013494,2]
[406689606,1772082430867,-500.0,0.00013494,2]
[406689607,1772082430887,-500.0,0.00013494,2]
[406689608,1772082430907,-500.0,0.00013494,2]
[406689609,1772082430926,-500.0,0.00013494,2]
[406689610,1772082430946,-500.0,0.00013494,2]
[406689611,1772082430966,-500.0,0.00013494,2]
[406689612,1772082430985,-500.0,0.00013494,2]
[406689613,1772082431005,-500.0,0.00013494,2]
[406689614,1772082431024,-500.0,0.00013494,2]
[406689615,1772082431046,-500.0,0.00013494,2]
[406689616,1772082431066,-500.0,0.00013494,2]
[406689617,1772082431090,-500.0,0.00013494,2]
[406689618,1772082431112,-500.0,0.00013494,2]
[406689619,1772082431134,-500.0,0.00013494,2]
[406689620,1772082431155,-500.0,0.00013494,2]
[406689621,1772082431178,-500.0,0.00013494,2]
[406689622,1772082431199,-629.96458885,0.00013494,2]
[406689623,1772082431219,-500.0,0.00013494,2]
[406689624,1772082431238,-500.0,0.00013494,2]
[406689625,1772082431260,-227.49121053,0.00013494,2]
[406689626,1772082431281,-500.0,0.00013494,2]
[406689627,1772082431305,-500.0,0.00013494,2]
[406689628,1772082431330,-500.0,0.00013494,2]
[406689629,1772082431351,-500.0,0.00013494,2]
[406689630,1772082431373,-500.0,0.00013494,2]
[406689631,1772082431394,-500.0,0.00013494,2]
[406689632,1772082431415,-500.0,0.00013494,2]
[406689633,1772082431435,-500.0,0.00013494,2]
[406689634,1772082431457,-500.0,0.00013494,2]
[406689635,1772082431479,-500.0,0.00013494,2]
[406689636,1772082431499,-555.53799429,0.00013494,2]
[406689637,1772082431522,-19208.38574513,0.00013495,2]
[406689638,1772082431544,-26785.0,0.000135,2]
[406689639,1772082431563,-1592.096146,0.00013699,2]
[406689640,1772082431584,-300.0,0.000138,2]
[406689641,1772082431606,-300.0,0.000138,2]
[406689642,1772082431628,-300.0,0.000138,2]
[406689643,1772082431649,-300.0,0.000138,2]
[406689644,1772082431670,-300.0,0.000138,2]
[406689645,1772082431690,-300.0,0.000138,2]
[406689646,1772082431711,-300.0,0.000138,2]
[406689647,1772082431731,-300.0,0.000138,2]
[406689648,1772082431751,-300.0,0.000138,2]
[406689649,1772082431771,-300.0,0.000138,2]
[406689650,1772082431792,-300.0,0.000138,2]
[406689651,1772082431812,-300.0,0.000138,2]
[406689652,1772082431833,-300.0,0.000138,2]
[406689653,1772082431855,-300.0,0.000138,2]
[406689654,1772082431875,-300.0,0.000138,2]
[406689655,1772082431897,-600.0,0.000138,2]
[406689656,1772082431920,-272.89114364,0.00014773,2]
[406689657,1772082431941,-2080.0,0.00015,2]
[406689658,1772082431962,-720.0,0.0001518,2]
[406689659,1772082431981,-1280.50553426,0.00015388,2]
[406689660,1772082432000,-300.0,0.00015545,2]
[406689661,1772082432020,-282.1851143,0.00015568,2]
[406689662,1772082432042,-200.0,0.00015732,3]
[406689663,1772082432064,-864.0,0.00016697,2]
[406689664,1772082432084,-314.51860623,0.00016773,2]
[406689665,1772082432104,-9120.98887318,0.00017,2]
[406689666,1772082432125,-2676.83522171,0.000173,2]
[406689667,1772082436093,-5000.0,0.00017127,2]
[406689668,1772082436115,-20292.40093556,0.000173,2]
[406689669,1772082479427,191.72,9.99e-05,2]
[406689670,1772082605381,154.74,9.5e-05,2]
[406689671,1772082606086,154.74,9.5e-05,2]
[406689672,1772082606748,154.74,9.6e-05,2]
[406689673,1772082607512,129.96226353,9.6e-05,2]
[406689674,1772082607539,24.77773647,9.6e-05,2]
[406689675,1772082608222,154.74,9.7e-05,2]
[406689676,1772082608886,154.74,9.7e-05,2]
[406689677,1772082609551,154.74,9.7e-05,2]
[406689678,1772082610223,84.14379822,9.8e-05,2]
[406689679,1772082610249,70.59620178,9.8e-05,2]
[406689680,1772082610917,154.74,9.8e-05,2]
[406689681,1772082611542,154.74,9.9e-05,2]
[406689682,1772082612217,154.74,9.9e-05,2]
[406689683,1772082612874,154.74,0.0001,2]
[406689684,1772082613427,154.74,0.0001,2]
[406689685,1772082614107,154.74,0.0001,2]
[406689686,1772082615188,154.74,0.000101,2]
[406689687,1772082615455,154.74,0.000101,2]
[406689688,1772082616394,154.74,0.000102,2]
[406689689,1772082617119,154.74,0.000102,2]
[406689690,1772082617807,154.74,0.000102,2]
[406689691,1772082618461,154.74,0.000103,2]
[406689692,1772082619327,154.74,0.000103,2]
[406689693,1772082619978,154.74,0.000104,2]
[406689694,1772082621160,154.74,0.000104,2]
[406689695,1772082621724,154.74,0.000104,2]
[406689728,1772082631956,-1028.5690119,0.00014943,2]
[406689731,1772082631971,-635.0,0.00014943,2]
[406689733,1772082631985,-2184.0800983,0.00014943,2]
[406689736,1772082632000,-300.0,0.00015241,2]
[406689738,1772082632015,-300.0,0.00015241,2]
[406689741,1772082632029,-14.82476025,0.00015241,2]
[406689744,1772082632047,-285.17523975,0.00015241,2]
[406689746,1772082632064,-300.0,0.00015241,2]
[406689749,1772082632079,-300.0,0.00015241,2]
[406689751,1772082632095,-300.0,0.00015241,2]
[406689753,1772082632109,-300.0,0.00015241,2]
[406689756,1772082632124,-300.0,0.00015241,2]
[406689759,1772082632139,-2424.03084782,0.00016578,2]
[406689827,1772082638044,-300.0,0.00015241,2]
[406689828,1772082638055,-300.0,0.00015241,2]
[406689829,1772082638066,-300.0,0.00015241,2]
[406689830,1772082638076,-300.0,0.00015241,2]
[406689831,1772082638086,-300.0,0.00015241,2]
[406689832,1772082638097,-300.0,0.00015241,2]
[406689837,1772082638107,-300.0,0.00015241,2]
[406689838,1772082638431,-80.85129192,0.00016578,2]
[406689839,1772082638441,-1028.5690119,0.00016678,2]
[406689840,1772082638451,-2184.0800983,0.00016814,2]
[406689841,1772082638460,-200.0,0.0001719,3]
[406689842,1772082638469,-21136.70549082,0.000173,2]
[406689843,1772082638478,-1332.10431021,0.000177,2]
[406689844,1772082638488,-250.0,0.0001798,2]
[406689845,1772082638497,-250.0,0.0001798,2]
[406689846,1772082638506,-250.0,0.0001798,2]
[406689847,1772082638517,-250.0,0.0001798,2]
[406689848,1772082638531,-250.0,0.0001798,2]
[406689849,1772082638541,-250.0,0.0001798,2]
[406689850,1772082638551,-250.0,0.0001798,2]
[406689851,1772082638561,-250.0,0.0001798,2]
[406689852,1772082638571,-174.16523792,0.0001798,2]
[406689853,1772082638580,-250.0,0.0001798,2]
[406689854,1772082638590,-644.79446246,0.0001798,2]
[406689855,1772082638601,-250.0,0.0001798,2]
[406689856,1772082638611,-251.77712682,0.0001798,2]
[406689857,1772082638622,-2579.17784983,0.0001798,2]
[406689858,1772082638631,-194.72792766,0.0001798,2]
[406689859,1772082638641,-201.93286099,0.0001798,2]
[406689860,1772082638650,-209.40437684,0.0001798,2]
[406689861,1772082638660,-217.15233878,0.0001798,2]
[406689862,1772082638670,-225.18697532,0.0001798,2]
[406689863,1772082638679,-233.51889341,0.0001798,2]
[406689864,1772082638689,-242.15909246,0.0001798,2]
[406689865,1772082638699,-251.11897888,0.0001798,2]
[406689866,1772082638708,-260.4103811,0.0001798,2]
[406689867,1772082638717,-270.0455652,0.0001798,2]
[406689868,1772082638727,-280.03725112,0.0001798,2]
[406689869,1772082638736,-290.39862941,0.0001798,2]
[406689870,1772082638746,-301.1433787,0.0001798,2]
[406689871,1772082638755,-15995.39457087,0.00018,2]
[406689872,1772082638765,-179.506,0.00018039,2]
[406689873,1772082638774,-744.71502317,0.00018183,2]
[406689874,1772082638784,-2637.0,0.000183,2]
[406689875,1772082638793,-600.0,0.00018338,2]
[406689876,1772082638803,-728.0,0.00018398,2]
[406689877,1772082638814,-715.0,0.000184,2]
[406689878,1772082638823,-1028.5690119,0.00018414,2]
[406689879,1772082638833,-668.65185757,0.00018528,2]
[406689880,1772082638842,-2674.60743027,0.00018528,2]
[406689881,1772082638851,-2184.0800983,0.00018684,2]
[406689882,1772082638861,-158.95746701,0.00018763,2]
[406689883,1772082638874,-356.14606882,0.00018773,2]
[406689884,1772082638883,-403.0,0.0001904,2]
[406689885,1772082638892,-715.0,0.0001904,2]
[406689886,1772082638902,-2773.56790519,0.00019076,2]
[406689887,1772082638911,-305.74089842,0.00019178,2]
[406689888,1772082638920,-301.34763887,0.00019178,2]
[406689889,1772082638929,-344.39730157,0.00019178,2]
[406689890,1772082638938,-222.03383937,0.00019322,2]
[406689891,1772082638947,-192.86,0.00019336,2]
[406689892,1772082638956,-637.0,0.00019336,2]
[406689893,1772082638965,-2181.0,0.00019336,2]
[406689894,1772082638974,-1386.0,0.00019336,2]
[406689895,1772082638983,-403.0,0.0001936,2]
[406689896,1772082638993,-447.37,0.00019524,2]
[406689897,1772082639002,-550.33361716,0.00019598,2]
[406689898,1772082639011,-192.12054101,0.000196,2]
[406689899,1772082639020,-2876.18991768,0.00019624,2]
[406689900,1772082639029,-543.20044664,0.00019815,5]
[406689901,1772082639038,-189.32392327,0.00019815,5]
[406689902,1772082639047,-786.0,0.000199,2]
[406689903,1772082639056,-20780.54276026,0.0002,2]
[406689904,1772082639070,-5950.97310798,0.0002,2]
[406689905,1772082639081,-5146.49120854,0.0002,2]
[406689906,1772082639094,-7022.55552745,0.0002,2]
[406689907,1772082639106,-30067.62946038,0.0002,2]
[406689908,1772082639117,-3233.56746409,0.0002,2]
[406690041,1772082643259,-500.0,0.0001798,2]
[406690042,1772082643269,-194.72792766,0.0001798,2]
[406690043,1772082643278,-571.73207234,0.0002,2]
[406690046,1772082646072,-500.0,0.0001798,2]
[406690047,1772082646086,-500.0,0.0001798,2]
[406690048,1772082646096,-500.0,0.0001798,2]
[406690049,1772082646105,-500.0,0.0001798,2]
[406690050,1772082646115,-500.0,0.0001798,2]
[406690051,1772082646124,-5020.79212944,0.0002,2]
[406690052,1772082646135,-3163.91173982,0.0002,2]
[406690053,1772082647358,-14851.77711731,0.0002,2]
[406690054,1772082647917,-7591.31589104,0.0002,2]
[406690064,1772083021724,281.0946984,8.702e-05,2]
[406690066,1772083624867,1680.12722241,0.00012001,2]
[406690067,1772083632211,-2605.91744538,0.00012126,2]
[406690068,1772083748147,-2394.08255462,0.00012126,2]
[406690069,1772083748171,-207.76729106,0.00012343,2]
[406690070,1772083748203,-200.0,0.00012522,2]
[406690071,1772083748224,-600.0,0.0001275,2]
[406690072,1772083748245,-288.04815145,0.00012804,2]
[406690088,1772083832214,-852.67821556,0.00012676,2]
[406690090,1772083832226,-14.97462914,0.00012676,2]
[406690092,1772083832235,-599.0,0.00012676,2]
[406690094,1772083832246,-2082.02085072,0.00012805,2]
[406690096,1772083832255,-5000.0,0.00013,2]
[406690098,1772083832264,-300.0,0.00013272,2]
[406690100,1772083832274,-505.66516554,0.00013273,2]
[406690102,1772083832283,-500.0,0.00013273,2]
[406690104,1772083832293,-434.94573832,0.00013273,2]
[406690356,1772083838399,-69.63808433,0.00013273,2]
[406690358,1772083838408,-500.0,0.00013273,2]
[406690360,1772083838418,-230.36191567,0.00013273,2]
[406690362,1772083838428,-193.56575809,0.00013273,2]
[406690364,1772083838438,-500.0,0.00013273,2]
[406690366,1772083838447,-517.54421288,0.00013273,2]
[406690368,1772083838457,-500.0,0.00013273,2]
[406690370,1772083838466,-502.44799837,0.00013273,2]
[406690373,1772083838475,-500.0,0.00013273,2]
[406690376,1772083838485,-278.37477616,0.00013699,2]
[406690379,1772083838497,-6.37287474,0.00013699,2]
[406690381,1772083838507,-502.603343,0.00013699,2]
[406690383,1772083838517,-504.10747769,0.00013699,2]
[406690385,1772083838526,-379.60754264,0.00013699,2]
[406690387,1772083838536,-512.06438372,0.00013699,2]
[406690390,1772083838545,-500.0,0.00013699,2]
[406690391,1772083838554,-92.39197391,0.00013699,2]
[406690394,1772083838566,-77.78705299,0.00013699,2]
[406690396,1772083838575,-227.33296448,0.00013699,2]
[406690398,1772083838585,-263.60923734,0.00013699,2]
[406690400,1772083838594,-500.0,0.00013699,2]
[406690402,1772083838603,-500.0,0.00013773,2]
[406690403,1772083838612,-625.06249793,0.00013773,2]
[406690404,1772083838623,-500.0,0.00013773,2]
[406690405,1772083838632,-500.0,0.00013773,2]
[406690406,1772083838642,-130.15711702,0.00013773,2]
[406691053,1772083846206,-188.09999743,0.00013773,2]
[406691054,1772083846217,-10000.0,0.00013774,2]
[406691055,1772083846226,-500.0,0.00013821,2]
[406691056,1772083846236,-500.0,0.00013821,2]
[406691057,1772083846245,-300.0,0.00013972,2]
[406691058,1772083846255,-300.0,0.00013972,2]
[406691059,1772083846265,-300.0,0.00013972,2]
[406691060,1772083846274,-300.0,0.00013972,2]
[406691061,1772083846283,-300.0,0.00013972,2]
[406691062,1772083846293,-300.0,0.00013972,2]
[406691063,1772083846302,-209.65447264,0.00013972,2]
[406691064,1772083846314,-90.34552736,0.00013972,2]
[406691065,1772083846323,-300.0,0.00013972,2]
[406691066,1772083846333,-300.0,0.00013972,2]
[406691067,1772083846342,-300.0,0.00013972,2]
[406691068,1772083846352,-300.0,0.00013972,2]
[406691069,1772083846363,-300.0,0.00013972,2]
[406691070,1772083846372,-300.0,0.00013972,2]
[406691071,1772083846382,-300.0,0.00013972,2]
[406691072,1772083846391,-300.0,0.00013972,2]
[406691073,1772083846400,-500.0,0.00014,2]
[406691074,1772083846410,-206.32826631,0.00014237,2]
[406691075,1772083846419,-245.16540345,0.00014343,2]
[406691076,1772083846428,-420.0,0.00014551,2]
[406691077,1772083846438,-500.0,0.00015,2]
[406691078,1772083846448,-171.173532,0.00015068,2]
[406691079,1772083846457,-500.0,0.00016,2]
[406691080,1772083846467,-282.56351584,0.00016343,2]
[406691081,1772083846476,-200.0,0.00016683,3]
[406691082,1772083846486,-362.5116984,0.00017385,2]
[406691083,1772083846495,-600.0,0.00017644,2]
[406691084,1772083846505,-500.0,0.00017967,2]
[406691085,1772083846514,-500.0,0.00017967,2]
[406691086,1772083846524,-113.2293331,0.00017967,2]
[406691087,1772083846565,-386.7706669,0.00017967,2]
[406691088,1772083846575,-500.0,0.00017967,2]
[406691089,1772083846585,-500.0,0.00017967,2]
[406691090,1772083846594,-194.72792766,0.00017967,2]
[406691091,1772083846604,-500.0,0.00017967,2]
[406691092,1772083846798,-201.93286099,0.00017967,2]
[406691093,1772083846808,-500.0,0.00017967,2]
[406691094,1772083846817,-209.40437684,0.00017967,2]
[406691095,1772083846827,-500.0,0.00017967,2]
[406691096,1772083846836,-500.0,0.00017967,2]
[406691097,1772083846847,-500.0,0.00017967,2]
[406691098,1772083846856,-500.0,0.00017967,2]
[406691099,1772083846865,-500.0,0.00017967,2]
[406691100,1772083846876,-500.0,0.00017967,2]
[406691101,1772083846886,-217.15233878,0.00017967,2]
[406691102,1772083846895,-225.18697532,0.00017967,2]
[406691103,1772083846908,-233.51889341,0.00017967,2]
[406691104,1772083846918,-242.15909246,0.00017967,2]
[406691105,1772083846928,-251.11897888,0.00017967,2]
[406691106,1772083846938,-260.4103811,0.00017967,2]
[406691107,1772083846949,-270.0455652,0.00017967,2]
[406691108,1772083846959,-280.03725112,0.00017967,2]
[406691109,1772083846968,-290.39862941,0.00017967,2]
[406691110,1772083846979,-301.1433787,0.00017967,2]
[406691111,1772083846989,-1000.0,0.00018,2]
[406691112,1772083846999,-1375.41012528,0.00018,2]
[406691113,1772083847008,-744.71502317,0.00018166,2]
[406691114,1772083847018,-319.96162823,0.00018343,2]
[406691115,1772083847027,-403.0,0.000184,2]
[406691116,1772083847037,-715.0,0.000184,2]
[406691117,1772083847047,-189.979,0.00018609,2]
[406691118,1772083847056,-1000.0,0.00019,5]
[406691119,1772083847066,-977.39250408,0.0001904,2]
[406691120,1772083847075,-310.36702105,0.0001904,2]
[406691121,1772083847085,-308.13915059,0.0001904,2]
[406691122,1772083847095,-233.88632762,0.0001904,2]
[406691123,1772083847104,-1386.0,0.00019336,2]
[406691124,1772083847114,-2181.0,0.00019336,2]
[406691125,1772083847124,-637.0,0.00019336,2]
[406691126,1772083847134,-728.0,0.00019336,2]
[406691127,1772083847144,-720.0,0.00019408,2]
[406691128,1772083847153,-179.941096,0.00019479,2]
[406691129,1772083847163,-192.12054101,0.000196,2]
[406691130,1772083847173,-171.173532,0.00019635,2]
[406691131,1772083847183,-402.0,0.0001968,2]
[406691132,1772083847192,-322.04291,0.00019694,7]
[406691133,1772083847202,-560.0,0.00019789,2]
[406691134,1772083847211,-16505.53093418,0.0002,2]
[406691135,1772083901307,-1019.70035464,0.00017967,2]
[406691142,1772084279717,223.69,9.99e-05,2]
[406691143,1772084280011,223.69,9.99e-05,2]
[406691153,1772084796135,-235.24602244,0.00013273,2]
[406691154,1772084796157,-206.32826631,0.00013327,2]
[406691155,1772084796184,-124.94125729,0.00013699,2]
[406691156,1772084833133,-500.0,0.00013699,2]
[406691157,1772084833153,-50.91355178,0.00013772,2]
[406691158,1772084848135,-216.27747855,0.00013772,2]
[406691159,1772084848170,-178.57476488,0.00013772,2]
[406691160,1772084949069,-500.0,0.00013699,2]
[406691161,1772084949090,-437.42523512,0.00013772,2]
[406691162,1772084949112,-197.21271267,0.00013777,2]
[406691163,1772084949132,-188.74175748,0.00013794,2]
[406691164,1772084951211,-311.25824252,0.00013794,2]
[406691165,1772084951259,-200.0,0.00013903,2]
[406691166,1772084951304,-1200.0,0.00013992,2]
[406691167,1772084951349,-300.0,0.00013993,2]
[406691168,1772084951394,-300.0,0.00013993,2]
[406691169,1772084951439,-300.0,0.00013993,2]
[406691170,1772084951482,-493.5,0.00013994,2]
[406691171,1772084951524,-493.5,0.00013994,2]
[406691172,1772084951564,-493.5,0.00013994,2]
[406691173,1772084951605,-493.5,0.00013994,2]
[406691174,1772084951644,-493.5,0.00013994,2]
[406691175,1772084951684,-493.5,0.00013994,2]
[406691176,1772084951724,-493.5,0.00013994,2]
[406691177,1772084951763,-493.5,0.00013994,2]
[406691178,1772084951804,-493.5,0.00013994,2]
[406691179,1772084951845,-493.5,0.00013994,2]
[406691180,1772084951886,-493.5,0.00013994,2]
[406691181,1772084951925,-493.57,0.00013994,2]
[406691182,1772084951965,-300.0,0.00014048,2]
[406691183,1772084952004,-300.0,0.00014048,2]
[406691184,1772084952044,-300.0,0.00014048,2]
[406691185,1772084952084,-300.0,0.00014048,2]
[406691186,1772084952128,-300.0,0.00014048,2]
[406691187,1772084952178,-300.0,0.00014048,2]
[406691188,1772084952219,-300.0,0.00014048,2]
[406691189,1772084952265,-300.0,0.00014048,2]
[406691190,1772084952469,-300.0,0.00014048,2]
[406691191,1772084952509,-300.0,0.00014048,2]
[406691192,1772084952547,-300.0,0.00014048,2]
[406691193,1772084952585,-300.0,0.00014048,2]
[406691194,1772084952624,-300.0,0.00014048,2]
[406691195,1772084952663,-300.0,0.00014048,2]
[406691196,1772084952703,-300.0,0.00014048,2]
[406691197,1772084952741,-916.205982,0.00014199,2]
[406691198,1772084952777,-1000.0,0.00014247,2]
[406691199,1772084952817,-600.0,0.00014328,2]
[406691200,1772084952854,-500.0,0.0001452,2]
[406691201,1772084952891,-589.5967441,0.00014795,2]
[406691202,1772084952927,-500.0,0.00015284,2]
[406691203,1772084952964,-208.0,0.0001533,2]
[406691204,1772084953001,-420.0,0.0001533,2]
[406691205,1772084953040,-628.0,0.00015391,2]
[406691206,1772084953077,-1419.12770962,0.00015557,2]
[406691207,1772084953119,-720.0,0.00015761,2]
[406691208,1772084953158,-232.71100095,0.00015777,2]
[406691209,1772084953196,-500.0,0.00016088,2]
[406691210,1772084953234,-151.79803902,0.00016438,2]
[406691211,1772084953271,-81.02359083,0.00016795,2]
[406691212,1772084954791,-505.97640917,0.00016795,2]
[406691213,1772084954813,-151.0,0.00016923,2]
[406691214,1772084954834,-202.384503,0.00016923,2]
[406691215,1772084954856,-184.91419289,0.00016923,2]
[406691216,1772084954875,-231.00043984,0.00016932,2]
[406691217,1772084954898,-500.0,0.00016932,2]
[406691218,1772084954921,-500.0,0.00016932,2]
[406691219,1772084954942,-500.0,0.00016932,2]
[406691220,1772084954963,-500.0,0.00016932,2]
[406691221,1772084954985,-500.0,0.00016932,2]
[406691222,1772084955008,-500.0,0.00016932,2]
[406691223,1772084955031,-635.39344809,0.00016932,2]
[406691224,1772084955052,-500.0,0.00016932,2]
[406691225,1772084955074,-500.0,0.00016932,2]
[406691226,1772084955095,-500.0,0.00016932,2]
[406691227,1772084955117,-600.45358775,0.00016932,2]
[406691228,1772084955139,-500.0,0.00016932,2]
[406691229,1772084955160,-500.0,0.00016935,2]
[406691230,1772084955183,-683.97117796,0.000173,2]
[406691231,1772084955608,-316.02882204,0.000173,2]
[406691232,1772084955631,-864.0,0.00017337,2]
[406691233,1772084955651,-1000.0,0.000174,2]
[406691234,1772084955671,-268.20928923,0.00017777,2]
[406691235,1772084955689,-253.86,0.00017811,2]
[406691236,1772084955709,-158.0,0.00017811,2]
[406691237,1772084955728,-158.0,0.00017811,2]
[406691238,1772084955747,-158.0,0.00017811,2]
[406691239,1772084955766,-158.0,0.00017811,2]
[406691240,1772084955785,-158.0,0.00017811,2]
[406691241,1772084955804,-500.0,0.00017826,2]
[406691244,1772085020588,181.71038312,0.00016087,2]
[406691245,1772085020938,344.49484308,0.00016087,2]